[Event "18th Aeroflot Open-A 2020"]
[Site "Moscow"]
[Date "2020.02.23"]
[Round "5.38"]
[White "Stupak, Kirill"]
[Black "Badelka, Olga"]
[Result "0-1"]
[ECO "A04"]
[WhiteElo "2518"]
[BlackElo "2404"]
[Annotator "RC"]
[PlyCount "80"]
[EventDate "2020.02.19"]
[EventType "swiss"]
[EventCountry "RUS"]
[SourceTitle "playchess.com"]
[Source "ChessBase"]
[SourceQuality "1"]
[TimeControl "40/6000+30:20/3000+30:900+30"]

1. Nf3 {[%emt 0:06:58]} c5 {[%emt 0:00:00]} 2. c4 {[%emt 0:00:35]} g6 {[%emt 0:00:16]} 3. d4 {[%emt 0:05:53]} Bg7 {[%emt 0:00:33]} 4. d5 {[%emt 0:04:42]} d6 {[%emt 0:00:48]} 5. g3 {[%emt 0:05:17]} e6 {[%emt 0:00:28]} 6. Nc3 {[%emt 0:00:26]} Ne7 {[%emt 0:02:05]} 7. Bg2 {[%emt 0:01:57]} O-O {[%emt 0:03:10]} 8. O-O {[%emt 0:00:13]} a6 {[%emt 0:00:41]} 9. a4 {[%emt 0:04:18]} e5 {[%emt 0:07:30]} 10. Ne1 {[%emt 0:04:04]} f5 {[%emt 0:00:51]} 11. Nd3 {[%emt 0:01:28]} Nd7 {[%emt 0:03:11]} 12. e4 {[%emt 0:04:00]} Nf6 {[%emt 0:03:50]} 13. f4 {[%emt 0:01:43]} fxe4 {[%emt 0:06:26]} 14. Nxe4 {[%emt 0:00:56]} Nxe4 {[%emt 0:09:04]} 15. Bxe4 {[%emt 0:01:03]} exf4 {[%emt 0:01:52]} 16. Nxf4 {[%emt 0:04:43]} Qa5 {[%emt 0:07:56]} 17. Ra3 {[%emt 0:11:52]} Qb4 {[%emt 0:09:51]} 18. Qb3 {[%emt 0:40:54]} g5 {[%emt 0:14:58]} 19. Ng2 {[%emt 0:00:28]} Bf5 {[%emt 0:15:34]} 20. Bxf5 {[%emt 0:06:36]} Nxf5 {[%emt 0:00:06]} 21. Qxb4 {[%emt 0:01:18]} cxb4 {[%emt 0:00:06]} 22. Raf3 {[%emt 0:01:04]} Nd4 {[%emt 0:02:03]} 23. Rxf8+ {[%emt 0:00:25]} Rxf8 {[%emt 0:00:05]} 24. Rxf8+ {[%emt 0:00:07]} Kxf8 {[%emt 0:00:05]} 25. Kf2 {[%emt 0:00:44]} Nb3 {[%emt 0:07:36]} 26. Bxg5 {[%emt 0:00:01]} Bxb2 {[%emt 0:00:04]} 27. Nf4 {[%emt 0:00:26]} Na5 {[%emt 0:01:15]} 28. Ke2 {[%emt 0:01:13]} b3 {[%emt 0:04:49]} 29. Kd3 {[%emt 0:00:34]} Be5 {[%emt 0:00:43]} 30. Ne6+ {[%emt 0:00:26]} Ke8 {[%emt 0:00:32]} 31. Bc1 {[%emt 0:00:33]} b2 {[%emt 0:00:16]} 32. Bxb2 {[%emt 0:00:12]} Bxb2 {[%emt 0:00:05]} 33. c5 {[%emt 0:00:07]} Ke7 {[%emt 0:02:06]} 34. Ke4 {[%emt 0:01:10]} dxc5 {[%emt 0:00:53]} 35. Nxc5 {[%emt 0:00:08]} Kd6 {[%emt 0:00:15]} 36. Ne6 {[%emt 0:00:33]} Nb3 {[%emt 0:00:40]} 37. Ng5 {[%emt 0:00:27]} Nc5+ {[%emt 0:00:47]} 38. Kf5 {[%emt 0:00:05]} h5 {[%emt 0:02:02]} 39. Kg6 {[%emt 0:00:14]} Kxd5 {[%emt 0:00:45]} 40. Kxh5 {[%emt 0:00:00]} Nxa4 {[%emt 0:00:00]} 0-1

[Event "18th Aeroflot Open-A 2020"]
[Site "Moscow"]
[Date "2020.02.23"]
[Round "5.39"]
[White "Buksa, Nataliya"]
[Black "Raja Harshit"]
[Result "1/2-1/2"]
[ECO "B90"]
[WhiteElo "2403"]
[BlackElo "2472"]
[Annotator "ChessBase"]
[PlyCount "56"]
[EventDate "2020.02.19"]
[EventType "swiss"]
[EventCountry "RUS"]
[SourceTitle "playchess.com"]
[Source "ChessBase"]
[SourceQuality "1"]
[TimeControl "40/6000+30:20/3000+30:900+30"]

1. e4 {[%emt 0:00:00]} c5 {[%emt 0:00:00]} 2. Nf3 {[%emt 0:00:00]} d6 {[%emt 0:00:06]} 3. d4 {[%emt 0:00:00]} cxd4 {[%emt 0:00:07]} 4. Nxd4 {[%emt 0:00:00]} Nf6 {[%emt 0:00:23]} 5. Nc3 {[%emt 0:00:00]} a6 {[%emt 0:00:13]} 6. Bd3 {[%emt 0:00:30]} e5 {[%emt 0:00:31]} 7. Nde2 {[%emt 0:00:06]} Be7 {[%emt 0:00:07]} 8. O-O {[%emt 0:00:21]} Be6 {[%emt 0:00:05]} 9. f4 {[%emt 0:00:32]} O-O {[%emt 0:00:45]} 10. a4 {[%emt 0:01:44]} Qc7 {[%emt 0:01:16]} 11. Kh1 {[%emt 0:12:49]} Nbd7 {[%emt 0:09:14]} 12. f5 {[%emt 0:14:27]} Bc4 {[%emt 0:00:06]} 13. b3 {[%emt 0:00:05]} d5 {[%emt 0:25:57]} 14. exd5 {[%emt 0:25:52]} Bxd5 {[%emt 0:00:32]} 15. Nxd5 {[%emt 0:00:08]} Nxd5 {[%emt 0:00:07]} 16. Ng3 {[%emt 0:05:25]} N7f6 {[%emt 0:07:58]} 17. c4 {[%emt 0:06:12]} Nb4 {[%emt 0:06:14]} 18. Be4 {[%emt 0:00:04]} Rad8 {[%emt 0:02:26]} 19. Qe2 {[%emt 0:00:04]} Nxe4 {[%emt 0:09:36]} 20. Nxe4 {[%emt 0:01:33]} f6 {[%emt 0:00:05]} 21. Ba3 {[%emt 0:09:50]} Nc6 {[%emt 0:02:01]} 22. Bxe7 {[%emt 0:01:14]} Qxe7 {[%emt 0:03:12]} 23. c5 {[%emt 0:01:28]} Qf7 {[%emt 0:05:46]} 24. Nd6 {[%emt 0:06:47]} Qd5 {[%emt 0:02:50]} 25. b4 {[%emt 0:09:50]} Nd4 {[%emt 0:03:02]} 26. Qd2 {[%emt 0:06:38]} Rd7 {[%emt 0:01:35]} 27. a5 {[%emt 0:00:28]} g6 {[%emt 0:03:40]} 28. Ra3 {[%emt 0:05:28]} g5 {[%emt 0:05:42]} 1/2-1/2